bitfinex/quotes_SOLUSD_20251201
["timestamp","ask_amount","ask_price","bid_price","bid_amount"]
[1764632269858,12.38445785,127.29,127.27,0.2]
[1764632271274,8.82216157,127.29,127.27,0.2]
[1764632272075,8.82216157,127.29,127.27,8.05721196]
[1764632272276,8.68,127.29,127.28,0.72]
[1764632272679,20.64622314,127.36,127.28,4.28229628]
[1764632272863,3.56229628,127.37,127.31,3.56229628]
[1764632273059,8.68,127.36,127.32,3.56229628]
[1764632273463,8.68,127.36,127.33,0.72]
[1764632273979,8.68,127.36,127.33,8.57355364]
[1764632274280,3.56229628,127.34,127.3,0.72]
[1764632274458,3.56229628,127.34,127.29,7.85607667]
[1764632274459,8.68,127.33,127.29,8.57607667]
[1764632274654,8.68,127.33,127.3,0.72]
[1764632275765,8.68,127.33,127.31,7.85484251]
[1764632276482,8.68,127.33,127.32,0.72]
[1764632277992,8.68,127.33,127.32,8.57422557]
[1764632278671,8.68,127.33,127.32,7.57422557]
[1764632280785,8.82216157,127.33,127.3,27.49293595]
[1764632281087,0.67,127.32,127.3,27.49293595]
[1764632281489,12.91229628,127.33,127.3,27.49293595]
[1764632282188,12.91229628,127.33,127.3,28.21293595]
[1764632283792,12.91229628,127.33,127.3,8.57501373]
[1764632284464,12.91229628,127.33,127.3,7.85501373]
[1764632284465,4.37445785,127.32,127.3,7.85501373]
[1764632284663,3.56229628,127.31,127.3,7.85501373]
[1764632284889,4.23229628,127.31,127.3,7.85501373]
[1764632285385,4.23229628,127.31,127.28,8.57639506]
[1764632285591,12.24229628,127.3,127.28,8.57639506]
[1764632285890,8.68,127.3,127.28,8.57639506]
[1764632289994,12.24229628,127.3,127.28,7.85639506]
[1764632290297,0.67,127.29,127.27,13.55712458]
[1764632290792,12.24229628,127.3,127.27,14.27712458]
[1764632290973,12.91229628,127.3,127.27,14.27712458]
[1764632291394,4.38445785,127.29,127.27,0.2]
[1764632291600,3.70445785,127.28,127.27,0.2]
[1764632291786,4.38445785,127.28,127.27,0.2]
[1764632292371,13.19440277,127.28,127.27,0.2]
[1764632293899,37.35996067,127.28,127.27,0.2]
[1764632300685,46.03996067,127.28,127.27,0.2]
[1764632302220,49.60225695,127.28,127.27,0.2]
[1764632303213,42.47766439,127.28,127.27,0.2]
[1764632303438,46.03996067,127.28,127.27,0.2]
[1764632305619,29.05109667,127.28,127.27,0.2]
[1764632306117,29.73109667,127.28,127.27,0.2]
[1764632308027,26.16880039,127.28,127.27,0.2]
[1764632308198,29.73109667,127.28,127.27,0.2]
[1764632309528,11.56115175,127.28,127.27,0.85]
[1764632309816,12.24229628,127.28,127.27,0.85]
[1764632310011,12.38445785,127.28,127.27,0.85]
[1764632312199,20.95115175,127.28,127.27,0.2]
[1764632312402,20.24115175,127.28,127.27,0.2]
[1764632313814,20.95115175,127.28,127.27,0.2]
[1764632314017,20.24115175,127.28,127.27,0.2]
[1764632318219,12.38445785,127.28,127.27,0.2]
[1764632318452,3.70445785,127.28,127.27,0.91]
[1764632318643,12.38445785,127.28,127.27,0.91]
[1764632324416,11.10240802,127.28,127.27,0.91]
[1764632324725,8.68,127.28,127.27,0.91]
[1764632325132,10.96024645,127.28,127.27,0.91]
[1764632326530,10.96024645,127.28,127.27,8.76731122]
[1764632326736,10.96024645,127.28,127.27,0.91]
[1764632334850,8.68,127.28,127.27,8.76731122]
[1764632335332,8.68,127.28,127.27,0.91]
[1764632335724,8.68,127.28,127.27,8.76731122]
[1764632336035,10.96024645,127.28,127.27,8.76731122]
[1764632337925,8.68,127.28,127.27,8.76731122]
[1764632339153,10.96024645,127.28,127.27,0.2]
[1764632339844,11.76240802,127.28,127.27,0.2]
[1764632340969,0.14216157,127.27,127.24,7.85916378]
[1764632341245,2.28024645,127.26,127.24,8.57916378]
[1764632341441,8.68,127.25,127.24,8.57916378]
[1764632341742,10.96024645,127.25,127.24,7.85916378]
[1764632342550,10.96024645,127.25,127.24,0.72]
[1764632343042,8.68,127.25,127.24,0.72]
[1764632343448,8.68,127.25,127.24,8.57916378]
[1764632344550,10.96024645,127.25,127.24,8.57916378]
[1764632345137,10.96024645,127.25,127.24,7.85916378]
[1764632346752,0.14216157,127.24,127.22,8.05993422]
[1764632346945,2.42240802,127.23,127.22,0.2]
[1764632348019,2.28024645,127.23,127.22,0.92]
[1764632350351,0.14216157,127.24,127.22,8.7803993]
[1764632350535,2.42240802,127.24,127.23,0.72]
[1764632350952,2.28024645,127.24,127.23,8.57978149]
[1764632351152,10.96024645,127.25,127.23,8.57978149]
[1764632351336,11.10240802,127.25,127.24,0.72]
[1764632351644,11.10240802,127.25,127.22,8.0601471]
[1764632351841,2.28024645,127.24,127.23,0.72]
[1764632352425,8.68,127.25,127.23,0.72]
[1764632352828,8.68,127.25,127.23,6.22]
[1764632353153,8.68,127.25,127.24,7.85916378]
[1764632353453,8.68,127.25,127.24,8.57916378]
[1764632356228,8.68,127.29,127.24,36.00731969]
[1764632356424,8.68,127.29,127.25,3.00024645]
[1764632356948,8.55263484,127.35,127.28,2.28024645]
[1764632357259,2.28024645,127.33,127.28,2.28024645]
[1764632357548,2.28024645,127.33,127.29,0.72]
[1764632357744,17.108864,127.38,127.32,2.28024645]
[1764632357957,25.788864,127.38,127.34,10.13323843]
[1764632358324,8.78,127.38,127.36,2.28024645]
[1764632358553,8.78,127.38,127.37,0.72]
[1764632359051,8.78,127.38,127.34,43.79433595]
[1764632359236,8.78,127.38,127.35,0.72]
[1764632360053,11.06024645,127.38,127.35,0.72]
[1764632361439,11.06024645,127.38,127.35,8.57223816]
[1764632361641,11.06024645,127.38,127.36,0.72]
[1764632362550,11.76024645,127.38,127.35,28.20317651]
[1764632362754,11.06024645,127.38,127.35,28.20317651]
[1764632363640,11.06024645,127.38,127.36,0.72]
[1764632364237,8.78,127.38,127.36,0.72]
[1764632365162,2.28024645,127.37,127.35,27.48317651]
[1764632365343,11.06024645,127.38,127.36,0.72]
[1764632365744,11.06024645,127.38,127.37,7.85114234]
[1764632367569,11.76024645,127.38,127.35,27.48331369]
[1764632367772,2.28024645,127.37,127.35,28.20331369]
[1764632369261,9.48,127.38,127.35,28.20331369]
[1764632369768,2.28024645,127.37,127.35,28.20331369]
[1764632370860,2.28024645,127.37,127.35,8.57237534]
[1764632372270,11.06024645,127.38,127.35,27.48331369]
[1764632372442,11.06024645,127.38,127.36,0.72]
[1764632373371,11.06024645,127.38,127.36,8.57115324]
[1764632374858,11.06024645,127.38,127.35,19.63093835]
[1764632375062,11.06024645,127.38,127.37,0.72]
[1764632375976,8.78,127.38,127.37,0.72]
[1764632379572,11.77024645,127.38,127.35,0.72]
[1764632379789,2.28024645,127.37,127.35,0.72]
[1764632380089,11.77024645,127.38,127.35,0.72]
[1764632380472,11.06024645,127.38,127.35,6.22]
[1764632380890,11.06024645,127.38,127.36,8.57141269]
[1764632382480,8.78,127.38,127.36,8.57141269]
[1764632387981,12.33652264,127.38,127.36,8.57141269]
[1764632389472,13.01652264,127.38,127.36,7.85141269]
[1764632390187,8.78,127.38,127.36,8.50141269]
[1764632393265,0.1,127.38,127.37,0.65]
[1764632393466,8.76,127.38,127.37,0.65]
[1764632394195,11.99652264,127.38,127.36,27.48080967]
[1764632394490,11.99652264,127.38,127.36,28.13080967]
[1764632394691,11.31652264,127.38,127.36,8.50141269]
[1764632400198,11.99652264,127.38,127.36,7.85141269]
[1764632401295,3.55652264,127.37,127.36,7.85141269]
[1764632401494,4.37868421,127.37,127.32,35.944278]
[1764632401692,3.55652264,127.35,127.33,7.85360873]
[1764632401880,8.66,127.34,127.33,8.50360873]
[1764632402775,8.66,127.34,127.33,12.06013137]
[1764632403691,8.66,127.34,127.33,8.50360873]
[1764632403897,8.66,127.34,127.33,12.06013137]
[1764632404384,8.66,127.34,127.33,8.50360873]
[1764632407096,8.66,127.37,127.33,31.6941532]
[1764632407275,8.66,127.37,127.34,4.20652264]
[1764632407689,8.66,127.37,127.35,0.65]
[1764632408289,12.21652264,127.37,127.33,32.98763056]
[1764632408475,12.21652264,127.37,127.34,0.65]
[1764632408796,8.66,127.37,127.34,0.65]
[1764632409004,12.21652264,127.37,127.35,7.85237534]
[1764632410202,12.21652264,127.37,127.35,14.00237534]
[1764632410385,12.21652264,127.37,127.33,7.85360873]
[1764632410697,0.68,127.36,127.33,8.50360873]
[1764632410884,3.55652264,127.36,127.34,0.65]
[1764632411304,12.89652264,127.37,127.35,7.85237534]
[1764632413207,3.55652264,127.36,127.35,7.85237534]
[1764632414403,4.23652264,127.36,127.33,7.85337026]
[1764632414597,3.55652264,127.35,127.33,8.57337026]
[1764632414804,4.23652264,127.36,127.33,8.57337026]
[1764632415892,12.21652264,127.37,127.33,27.48739209]
[1764632416207,12.21652264,127.37,127.34,0.72]
[1764632416384,8.66,127.37,127.34,0.72]
[1764632417103,12.21652264,127.37,127.34,0.72]
[1764632417878,12.21652264,127.37,127.35,7.85237534]
[1764632418085,12.89652264,127.37,127.35,7.85237534]
[1764632418885,12.89652264,127.37,127.35,8.57237534]
[1764632419084,12.21652264,127.37,127.35,8.57237534]
[1764632420402,8.66,127.37,127.35,7.85237534]
[1764632420605,8.66,127.37,127.36,0.72]
[1764632421303,8.66,127.37,127.35,32.98331369]
[1764632421500,8.66,127.37,127.35,33.70331369]
[1764632422712,8.66,127.37,127.35,28.20331369]
[1764632424785,8.66,127.37,127.36,0.72]
[1764632426021,8.66,127.37,127.36,8.57175879]
[1764632428013,8.66,127.37,127.36,14.07175879]
[1764632435421,9.35,127.37,127.36,13.35175879]
[1764632437412,8.66,127.37,127.36,14.01175879]
[1764632437606,8.66,127.37,127.36,13.35175879]
[1764632438293,12.90652264,127.37,127.36,5.5]
[1764632438500,13.04868421,127.37,127.36,5.5]
[1764632440119,13.04868421,127.37,127.34,7.85274832]
[1764632440424,4.24652264,127.36,127.34,7.85274832]
[1764632441024,0.69,127.36,127.34,7.85274832]
[1764632441408,4.24652264,127.36,127.34,7.85274832]
[1764632441816,4.22652264,127.35,127.34,7.85274832]
[1764632442721,4.36868421,127.35,127.31,7.85484251]
[1764632442919,3.55652264,127.32,127.31,7.85484251]
[1764632443114,12.21652264,127.32,127.31,7.85484251]
[1764632443318,13.02868421,127.32,127.29,8.56557499]
[1764632444305,0.67,127.31,127.29,8.56557499]
[1764632444507,0.67,127.31,127.29,7.85557499]
[1764632444819,0.67,127.31,127.27,38.2295376]
[1764632444820,2.27862212,127.3,127.28,7.85657489]
[1764632445019,2.27862212,127.29,127.25,8.56854616]
[1764632445198,8.66,127.28,127.25,8.56854616]
[1764632445402,9.33,127.28,127.25,8.56854616]
[1764632445621,8.66,127.28,127.26,0.71]
[1764632446327,8.66,127.28,127.26,8.56735921]
[1764632446523,11.60862212,127.28,127.26,7.85735921]
[1764632450621,2.27862212,127.27,127.26,7.85735921]
[1764632450806,2.94862212,127.27,127.25,7.85843609]
[1764632451313,2.27862212,127.27,127.25,8.56843609]
[1764632451912,2.94862212,127.26,127.24,13.35900447]
[1764632452113,8.66,127.25,127.24,5.5]
[1764632452320,8.66,127.25,127.24,0.71]
[1764632452528,8.66,127.25,127.24,8.56916378]
[1764632457510,8.66,127.25,127.24,7.85916378]
[1764632459437,8.66,127.25,127.24,8.56916378]
[1764632460642,9.33,127.25,127.24,7.85916378]
[1764632460822,8.66,127.25,127.24,7.85916378]
[1764632461939,0.67,127.29,127.24,30.49569536]
[1764632462236,8.66,127.28,127.25,0.71]
[1764632462437,2.94862212,127.27,127.24,33.71707324]
[1764632462628,2.94862212,127.27,127.24,33.00707324]
[1764632462829,2.94862212,127.27,127.25,0.71]
[1764632463038,2.94862212,127.27,127.24,33.71707324]
[1764632463716,0.67,127.27,127.24,33.71707324]
[1764632463916,2.27862212,127.27,127.25,0.71]
[1764632464331,11.60862212,127.28,127.25,0.71]
[1764632464641,10.93862212,127.28,127.24,33.00707324]
[1764632464822,2.27862212,127.25,127.24,7.85916378]
[1764632465018,10.93862212,127.25,127.24,7.85916378]
[1764632465238,11.60862212,127.25,127.24,7.85916378]
[1764632465637,10.93862212,127.25,127.24,7.85916378]
[1764632465847,8.66,127.25,127.24,0.71]
[1764632466531,8.66,127.25,127.23,8.56978149]
[1764632466725,8.66,127.25,127.24,0.71]
[1764632466937,8.66,127.25,127.23,7.85978149]
[1764632467134,8.66,127.25,127.23,8.56978149]
[1764632467337,8.66,127.25,127.23,28.21923523]
[1764632470023,8.66,127.25,127.23,27.50923523]
[1764632470246,3.09078369,127.24,127.22,0.2]
[1764632470436,2.42078369,127.23,127.22,0.2]
[1764632470639,3.09078369,127.23,127.22,0.2]
[1764632471243,0.14216157,127.25,127.22,0.91]
[1764632471545,8.80216157,127.25,127.22,0.91]
[1764632471734,8.80216157,127.25,127.23,0.69]
[1764632472147,8.66,127.25,127.24,7.85916378]
[1764632472627,8.66,127.25,127.24,8.54916378]
[1764632479954,10.95862212,127.28,127.24,28.19707324]
[1764632480142,11.61862212,127.28,127.25,0.69]
[1764632481064,11.61862212,127.28,127.26,7.85792865]
[1764632484667,10.95862212,127.28,127.26,8.54792865]
[1764632484868,11.61862212,127.28,127.26,8.54792865]
[1764632485366,11.61862212,127.28,127.26,7.85792865]
[1764632487754,3.08078369,127.27,127.26,7.85792865]
[1764632488443,3.08078369,127.27,127.24,7.85882617]
[1764632488644,0.14216157,127.24,127.22,0.2]
[1764632488874,11.08078369,127.23,127.22,0.2]
[1764632489059,11.74078369,127.23,127.22,0.2]
[1764632490768,11.08078369,127.23,127.22,0.2]
[1764632491171,11.76078369,127.23,127.22,0.2]
[1764632491558,9.48216157,127.23,127.22,0.2]
[1764632491870,11.08078369,127.23,127.22,0.2]
[1764632495156,11.08078369,127.23,127.22,8.0603993]
[1764632495360,11.08078369,127.23,127.22,0.2]
[1764632495556,8.80216157,127.23,127.22,0.2]
[1764632495762,8.80216157,127.23,127.22,8.7203993]
[1764632495763,8.66,127.23,127.22,8.7203993]
[1764632496155,8.80216157,127.27,127.22,16.49902142]
[1764632496360,8.68,127.27,127.23,2.93862212]
[1764632496785,8.68,127.27,127.24,28.16707324]
[1764632497185,8.68,127.27,127.25,0.66]
[1764632498174,11.63862212,127.27,127.24,8.51916378]
[1764632498374,2.27862212,127.26,127.24,8.51916378]
[1764632498960,2.27862212,127.26,127.23,13.35952573]
[1764632499191,2.95862212,127.26,127.23,14.01952573]
[1764632502107,2.94862212,127.25,127.23,13.35952573]
[1764632502392,8.68,127.24,127.23,7.85952573]
[1764632504905,11.10078369,127.24,127.23,7.85952573]
[1764632505092,11.77078369,127.24,127.23,7.85952573]
[1764632505489,0.14216157,127.23,127.22,0.2]
[1764632505697,3.09078369,127.23,127.22,0.2]
[1764632506385,4.37709767,127.23,127.22,0.2]
[1764632506921,0.14216157,127.23,127.22,0.2]
[1764632507206,0.14216157,127.23,127.22,8.7603993]
[1764632507425,8.68,127.23,127.22,8.7603993]
[1764632512109,8.68,127.23,127.22,0.2]
[1764632512110,13.05709767,127.23,127.22,0.2]
[1764632513394,20.91687916,127.23,127.22,0.2]
[1764632514111,13.05709767,127.23,127.22,0.2]
[1764632515006,20.91687916,127.23,127.22,0.2]
[1764632517112,13.05709767,127.23,127.22,0.2]
[1764632517889,20.91687916,127.23,127.22,0.2]
[1764632520317,29.72682408,127.23,127.22,0.2]
[1764632520828,49.18814896,127.23,127.22,0.2]
[1764632523225,124.18814896,127.23,127.22,0.2]
[1764632525522,0.14216157,127.22,127.21,0.2]
[1764632525728,4.37709767,127.22,127.21,0.2]
[1764632526141,7.52980702,127.22,127.21,0.2]
[1764632526632,158.95210649,127.21,127.19,0.2]
[1764632526837,41.07084269,127.2,127.18,0.2]
[1764632526995,3.70709767,127.19,127.18,0.2]
[1764632527191,7.53055267,127.19,127.18,0.2]
[1764632528297,15.39280599,127.19,127.18,0.2]
[1764632535831,6.7183911,127.19,127.18,0.89]
[1764632536125,12.38709767,127.19,127.18,0.89]
[1764632536532,20.24935099,127.19,127.18,0.89]
[1764632537332,12.38709767,127.19,127.18,0.89]
[1764632543929,8.82216157,127.19,127.18,0.89]
[1764632544441,12.38709767,127.19,127.18,0.89]
[1764632545747,13.08709767,127.19,127.18,0.2]
[1764632546439,29.75929591,127.19,127.18,0.2]
[1764632546832,26.19435981,127.19,127.18,0.2]
[1764632547345,29.75929591,127.19,127.18,0.2]
[1764632550024,46.06815991,127.19,127.18,0.2]
[1764632550751,0.14216157,127.18,127.17,0.2]
[1764632550918,4.36709767,127.18,127.17,0.2]
[1764632551349,7.5208013,127.18,127.17,0.2]
[1764632552032,15.38367282,127.18,127.17,0.2]
[1764632553432,159.61210649,127.17,127.15,0.2]
[1764632553635,24.76197869,127.16,127.14,0.2]
[1764632553837,7.27203377,127.15,127.14,0.2]
[1764632554043,7.93203377,127.15,127.14,0.2]
[1764632554351,15.79676047,127.15,127.14,0.2]
[1764632558357,8.66688827,127.15,127.14,0.2]
[1764632558549,12.23182437,127.15,127.14,0.2]
[1764632559060,12.2449361,127.15,127.14,0.92]
[1764632559229,12.38709767,127.15,127.14,0.92]
[1764632559430,12.38709767,127.15,127.14,0.2]
[1764632559628,12.2449361,127.15,127.14,0.2]
[1764632560052,13.04709767,127.15,127.14,0.2]
[1764632560951,20.25182437,127.15,127.14,0.2]
[1764632561142,20.91182437,127.15,127.14,0.2]
[1764632561852,29.72176929,127.15,127.14,0.2]
[1764632563456,37.78869875,127.15,127.14,0.2]
[1764632563830,29.72176929,127.15,127.14,0.2]
[1764632565249,3.70709767,127.15,127.14,0.2]
[1764632565452,7.86391389,127.17,127.14,0.86]
[1764632565751,8.68,127.16,127.15,0.66]
[1764632565937,8.82216157,127.16,127.15,0.66]
[1764632567259,8.82216157,127.16,127.15,8.5247267]
[1764632569661,11.10608152,127.16,127.15,8.5247267]
[1764632571370,11.10608152,127.16,127.14,0.2]
[1764632571542,2.42608152,127.15,127.14,0.2]
[1764632572765,2.42608152,127.15,127.14,0.86]
[1764632576148,2.42608152,127.15,127.14,0.2]
[1764632576346,2.42608152,127.15,127.14,0.86]
[1764632576545,10.29080822,127.15,127.14,0.86]
[1764632577567,10.97080822,127.15,127.14,0.2]
[1764632577768,10.29080822,127.15,127.14,0.2]
[1764632578672,2.42608152,127.15,127.14,0.86]
[1764632579748,2.42608152,127.15,127.14,0.2]
[1764632580173,2.42608152,127.15,127.14,0.86]
[1764632581667,0.14216157,127.15,127.14,0.86]
[1764632581849,2.42608152,127.15,127.14,0.86]
[1764632582182,0.14216157,127.15,127.14,0.86]
[1764632582345,2.42608152,127.15,127.14,0.86]
[1764632583872,2.42608152,127.15,127.14,0.2]
[1764632584050,2.42608152,127.15,127.14,0.86]
[1764632585189,0.14216157,127.15,127.14,0.86]
[1764632585475,2.42608152,127.15,127.14,0.86]
[1764632587973,2.42608152,127.15,127.14,8.72534528]
[1764632588271,8.82216157,127.15,127.14,8.72534528]
[1764632592357,0.14216157,127.17,127.14,16.50926523]
[1764632592679,8.68,127.16,127.15,0.68]
[1764632592858,8.68,127.16,127.15,8.5447267]
[1764632596655,10.96391995,127.16,127.15,8.5447267]
[1764632596853,8.68,127.16,127.15,8.5447267]
[1764632597268,10.96391995,127.16,127.15,8.5447267]
[1764632598262,8.68,127.16,127.15,8.5447267]
[1764632610697,8.68,127.16,127.14,0.2]
[1764632610698,0.14216157,127.15,127.14,0.2]
[1764632610888,3.11608152,127.15,127.14,0.2]
[1764632612205,10.98080822,127.15,127.14,0.2]
[1764632613296,3.11608152,127.15,127.14,0.2]
[1764632614290,10.98080822,127.15,127.14,0.2]
[1764632615410,3.11608152,127.15,127.14,0.2]
[1764632615599,10.98080822,127.15,127.14,0.2]
[1764632616602,11.10608152,127.15,127.14,0.86]
[1764632616908,8.82216157,127.15,127.14,0.86]
[1764632618204,2.28391995,127.18,127.14,8.72534528]
[1764632618397,8.68,127.17,127.15,0.66]
[1764632619204,8.68,127.17,127.15,8.52426403]
[1764632619684,8.68,127.17,127.16,0.66]
[1764632620097,10.96391995,127.17,127.15,7.86426403]
[1764632620300,2.28391995,127.16,127.15,8.52426403]
[1764632622293,8.68,127.17,127.15,8.52426403]
[1764632622492,2.28391995,127.16,127.15,8.52426403]
[1764632623013,10.96391995,127.17,127.15,8.52426403]
[1764632623890,10.96391995,127.17,127.15,7.86426403]
[1764632624218,8.82216157,127.17,127.16,0.69]
[1764632624389,11.10608152,127.17,127.16,0.69]
[1764632628497,12.95903554,127.17,127.14,5.7]
[1764632628699,3.56903554,127.15,127.14,5.7]
[1764632629597,4.27903554,127.15,127.14,5.7]
[1764632630099,12.14376224,127.15,127.14,0.2]
[1764632631009,4.27903554,127.15,127.14,0.2]
[1764632631313,3.56903554,127.15,127.14,0.2]
[1764632631514,3.71119711,127.15,127.14,0.2]
[1764632632812,3.71119711,127.15,127.14,0.89]
[1764632633108,0.14216157,127.15,127.14,0.89]
[1764632633496,3.56903554,127.16,127.14,8.75534528]
[1764632633723,3.71119711,127.16,127.15,0.69]
[1764632633897,12.24903554,127.17,127.15,8.5547267]
[1764632634306,12.39119711,127.17,127.16,0.69]
[1764632635003,12.39119711,127.17,127.15,7.8647267]
[1764632635203,12.39119711,127.17,127.15,8.5547267]
[1764632637008,8.82216157,127.17,127.15,8.5547267]
[1764632637328,8.82216157,127.17,127.14,8.06512365]
[1764632637329,3.56903554,127.16,127.14,8.06512365]
[1764632637534,3.56903554,127.15,127.14,8.06512365]
[1764632637718,3.56903554,127.15,127.14,8.75512365]
[1764632638430,3.56903554,127.15,127.14,0.89]
[1764632638730,3.56903554,127.15,127.14,8.75534528]
[1764632639241,3.56903554,127.15,127.14,0.2]
[1764632639443,3.56903554,127.15,127.14,0.89]
[1764632643044,0.14216157,127.16,127.14,0.89]
[1764632643240,0.14216157,127.16,127.15,0.69]
[1764632643545,3.71119711,127.16,127.15,0.69]
[1764632644344,0.14216157,127.16,127.15,0.69]
[1764632646937,8.68,127.17,127.15,8.55444074]
[1764632647123,12.24903554,127.17,127.15,8.55444074]
[1764632650532,8.68,127.16,127.15,7.86444074]
[1764632651132,8.68,127.16,127.15,8.55444074]
[1764632654347,12.92903554,127.16,127.14,5.7]
[1764632654645,3.56903554,127.15,127.14,5.7]
[1764632654839,3.71119711,127.15,127.14,0.2]
[1764632655045,0.14216157,127.15,127.14,0.2]
[1764632655348,3.71119711,127.15,127.14,0.2]
[1764632657747,3.71119711,127.15,127.14,8.06534528]
[1764632658442,3.71119711,127.15,127.14,0.2]
[1764632658644,4.39119711,127.15,127.14,0.2]
[1764632660826,3.71119711,127.15,127.14,0.2]
[1764632661043,3.71119711,127.15,127.14,8.77534528]
[1764632661242,0.14216157,127.15,127.14,8.06534528]
[1764632661737,0.14216157,127.15,127.14,8.77534528]
[1764632662232,8.54394357,127.17,127.14,8.77534528]
[1764632662233,3.56903554,127.17,127.14,8.77534528]
[1764632662540,8.68,127.16,127.15,0.71]
[1764632663334,8.68,127.16,127.15,8.5747267]
[1764632664949,12.24903554,127.16,127.15,7.8647267]
[1764632665147,12.24903554,127.16,127.15,8.5747267]
[1764632666851,8.68,127.16,127.15,8.5747267]
[1764632669132,3.56903554,127.18,127.15,8.5747267]
[1764632669334,8.68,127.17,127.16,8.57410821]
[1764632670035,12.24903554,127.17,127.16,8.57410821]
[1764632677259,12.24903554,127.17,127.16,8.57410821]
[1764632679972,12.24903554,127.17,127.15,7.8647267]
[1764632680157,3.56903554,127.16,127.15,8.5347267]
[1764632680461,8.68,127.17,127.15,8.5347267]
[1764632680462,8.68,127.17,127.15,7.8647267]
[1764632680660,12.24903554,127.17,127.15,7.8647267]
[1764632680862,12.24903554,127.17,127.16,0.67]
[1764632681951,12.24903554,127.17,127.16,8.53410821]
[1764632683964,8.68,127.17,127.16,14.03410821]
[1764632694552,8.68,127.17,127.16,33.69437873]
[1764632696569,8.68,127.17,127.16,35.97775174]
[1764632698957,8.68,127.17,127.16,33.69437873]
[1764632701358,11.78553458,127.17,127.16,7.86410821]
[1764632704698,0.14216157,127.16,127.15,7.86455231]
[1764632704982,3.10553458,127.16,127.14,8.06533452]
[1764632705179,2.42553458,127.15,127.14,8.06533452]
[1764632705369,3.10553458,127.15,127.14,8.06533452]
[1764632705765,2.42553458,127.15,127.14,8.06533452]
[1764632705961,3.10553458,127.15,127.14,8.06533452]
[1764632706963,11.64337301,127.17,127.14,8.74533452]
[1764632707164,8.66,127.16,127.14,8.74533452]
[1764632708188,10.94337301,127.16,127.14,8.74533452]
[1764632708890,8.66,127.16,127.14,8.74533452]
[1764632709090,10.94337301,127.16,127.14,8.74533452]
[1764632710091,10.94337301,127.16,127.14,14.24533452]
[1764632710900,8.66,127.16,127.14,14.24533452]
[1764632711067,8.66,127.16,127.15,0.68]
[1764632712390,0.71,127.18,127.15,8.5447267]
[1764632712601,8.66,127.17,127.15,8.5447267]
[1764632713683,10.94337301,127.17,127.15,7.8647267]
[1764632713887,11.65337301,127.17,127.15,7.8647267]
[1764632714590,9.37,127.17,127.15,7.8647267]
[1764632714886,11.65337301,127.17,127.15,7.8647267]
[1764632717294,2.28337301,127.16,127.15,7.8647267]
[1764632718692,9.37,127.17,127.15,7.8647267]
[1764632718876,11.65337301,127.17,127.15,8.5347267]
[1764632719682,3.13553458,127.16,127.14,0.2]
[1764632719881,2.42553458,127.15,127.14,0.2]
[1764632720083,0.71,127.15,127.13,7.86596397]
[1764632720399,2.28337301,127.16,127.13,7.86596397]
[1764632720400,8.66,127.14,127.13,7.86596397]
[1764632722185,8.66,127.14,127.13,8.53596397]
[1764632725102,8.66,127.14,127.13,13.80596397]
[1764632732098,8.66,127.14,127.13,16.08933698]
[1764632732296,8.66,127.17,127.13,35.75424691]
[1764632732497,8.66,127.17,127.15,7.8647267]
[1764632732801,9.31,127.17,127.15,27.52654345]
[1764632733300,9.31,127.17,127.15,28.22654345]
[1764632734198,9.31,127.17,127.15,7.8647267]
[1764632734402,11.59337301,127.17,127.15,7.8647267]
[1764632736905,11.59337301,127.17,127.15,13.1347267]
[1764632737403,9.31,127.17,127.15,13.1347267]
[1764632738998,0.65,127.16,127.15,13.1347267]
[1764632741107,3.07553458,127.16,127.15,5.27]
[1764632741608,10.93964279,127.16,127.15,5.27]
[1764632741912,10.93964279,127.16,127.12,7.8664358]
[1764632741913,0.14216157,127.15,127.12,7.8664358]
[1764632742206,2.42553458,127.13,127.11,8.06704671]
[1764632742406,2.28337301,127.12,127.11,8.06704671]
[1764632742607,2.98337301,127.12,127.11,8.06704671]